Cogmind - Beta 11.1 @@@ ROGUE MODE // 2022.12.12 @ 19:28:22 Player: sasha Result: Destroyed by D-53 Grenadier with Mini Grenade Launcher Performance ------------- Evolutions (0) 0 Regions Visited (2) 400 Robots Destroyed (26) 130 Value Destroyed (519) 519 Prototype IDs (0) 0 Alien Tech Used (0) 0 Bonus (0) 0 TOTAL SCORE: 1049 Bonus ------- None Cogmind --------- Core Integrity 0/250 Matter 211/300 Energy 250/250 System Corruption 1% Temperature Cool (0) Movement Walking (120) Location -10/Mines Parts ------- > --- POWER (1) -------- Ion Engine > --- PROPULSION (2) --- Improved Aluminum Leg Improved Aluminum Leg > --- UTILITY (2) ------ Small Storage Unit Authchip [R/Combat] > --- WEAPON (2) ------- Autogun Grenade Launcher > --- INVENTORY (8) ---- Light Nuclear Core Light Treads Light Treads Light Treads Light Treads Autogun Autogun Autogun Peak State ------------ > --- POWER ------------ Ion Engine > --- PROPULSION ------- Improved Aluminum Leg Improved Aluminum Leg > --- UTILITY ---------- Small Storage Unit Authchip [R/Combat] > --- WEAPON ----------- Autogun Autogun > --- INVENTORY -------- Light Nuclear Core Light Treads Light Treads Light Treads Light Treads Autogun Autogun Grenade Launcher [Rating: 15] Favorites ----------- Power Ion Engine Engine Ion Engine Propulsion Aluminum Leg Treads Light Treads Leg Aluminum Leg Utility Small Storage Unit Storage Small Storage Unit Hackware Authchip [R/Combat] Weapon Autogun Energy Gun Medium Laser Ballistic Gun Autogun Launcher Grenade Launcher Build | -11 -10 -10 ------- Run | Scr Mat Min Slots Evolved . | . . . Power . | . . . Propulsion . | . . . Utility . | . . . Weapon . | . . . Parts Attached 21 | 8 12 1 Power 2 | 1 1 . Engine 2 | 1 1 . Core . | . . . Reactor . | . . . Propulsion 10 | 4 6 . Treads 2 | 2 . . Leg 8 | 2 6 . Wheel . | . . . Hover . | . . . Flight . | . . . Utility 2 | 1 1 . Device . | . . . Storage 1 | 1 . . Processor . | . . . Hackware 1 | . 1 . Protection . | . . . Artifact . | . . . Weapon 7 | 2 4 1 Energy Gun 1 | . 1 . Energy Cannon . | . . . Ballistic Gun 5 | 2 3 . Ballistic Cannon . | . . . Launcher 1 | . . 1 Special Weapon . | . . . Impact Weapon . | . . . Slashing Weapon . | . . . Piercing Weapon . | . . . Special Melee Weapon . | . . . Unidentified Prototypes . | . . . Parts Lost 4 | . 4 . Power . | . . . Propulsion 2 | . 2 . Utility . | . . . Weapon 2 | . 2 . Highest Loss Streak 3 | . 3 . To Critical Strikes . | . . . Average Slot Usage (%) 95 | . 94 100 Engine 14 | . 14 14 Leg 27 | . 27 28 Storage 14 | . 14 14 Hackware 11 | . 10 14 Ballistic Gun 25 | . 26 17 Launcher 1 | . . 11 Naked Turns . | . . . Heaviest Build 16 | 12 16 16 Greatest Support 40 | 40 26 26 Greatest Overweight (x) 3 | 3 1 . Average Overweight (x) . | . . . Largest Inventory Capacity 8 | 8 8 8 Average Capacity 7 | 7 8 8 Most Carried 8 | 5 8 8 Average Carried 7 | 3 7 8 Final Capacity 8 | 8 8 8 Final Carried 8 | 4 8 8 Class Distribution -------------------- 100% | Mutant Dominant Class ---------------- Mutant | -10/Materials Mutant | -10/Mines Resources | -11 -10 -10 ----------- Run | Scr Mat Min Matter Collected 721 | 221 478 22 Remotely . | . . . Salvage Created 788 | . 737 51 Parts 50 | . 47 3 Haulers Intercepted 2 | . 2 . Recyclers Shooed . | . . . Parts Field Recycled . | . . . Retrieved Matter . | . . . Parts Self-Destructed . | . . . Prevented . | . . . Kills | -11 -10 -10 ------- Run | Scr Mat Min Combat Hostiles Destroyed 25 | . 17 8 Guns 17 | . 17 . AOE 8 | . . 8 Classes Destroyed 7 | . 6 1 Worker 1 | . 1 . Builder 1 | . 1 . Hauler 2 | . 2 . Watcher 2 | . 2 . Swarmer 9 | . 6 3 Grunt 11 | . 11 . Assembled 5 | . . 5 Best Kill Streak 5 | . 5 5 Combat Bots Only 5 | . 5 5 Max Kills in Single Turn 3 | . 1 3 Gunslinging . | . . . Exploded 3 | . . 3 Melee . | . . . Uniques/NPCs Destroyed . | . . . Combat | -11 -10 -10 -------- Run | Scr Mat Min Damage Taken 1020 | . 789 231 Core 252 | . 158 94 Absorbed by Shields . | . . . Core Remaining (%) 100 | 100 . . Volleys Fired 105 | . 101 4 Largest 2 | . 2 1 Hottest 70 | . 70 30 Shots Fired 187 | . 183 4 Gun 183 | . 183 . Cannon . | . . . Launcher 4 | . . 4 Special . | . . . Kinetic 174 | . 174 . Thermal 9 | . 9 . Explosive 4 | . . 4 Electromagnetic . | . . . Robot Hit Streak 9 | . 9 1 Robot Miss Streak 4 | . 4 . Penetration Max . | . . . Secondary Targets 1 | . 1 . Max Gunslinging Chain 1 | . 1 . Shots Hit Robots 112 | . 111 1 Core Hits 62 | . 42 20 Critical Kills 2 | . 2 . Critical Parts Destroyed 1 | . 1 . Critical Strikes 3 | . 3 . Destroy 3 | . 3 . Melee Attacks . | . . . Impact . | . . . Slashing . | . . . Piercing . | . . . Sneak Attacks . | . . . Combat Hostiles . | . . . Follow-up Attacks . | . . . Damage Inflicted 1676 | . 1142 534 Guns 1142 | . 1142 . Cannons . | . . . Explosions 534 | . . 534 Melee . | . . . Ramming . | . . . Kinetic 1053 | . 1053 . Thermal 89 | . 89 . Explosive 534 | . . 534 Electromagnetic . | . . . Impact . | . . . Slashing . | . . . Piercing . | . . . Highest Corruption 1 | . 1 1 Average Corruption 1 | . 1 1 Corruption Purged . | . . . Corruption Blocked . | . . . Effects 6 | . 5 1 Message Errors 4 | . 3 1 Energy Discharges 2 | . 2 . Overload Shots . | . . . Overflow Damage 21 | . . 21 Projectiles . | . . . Explosions 21 | . . 21 Melee . | . . . Knockbacks . | . . . Impact . | . . . Kinetic . | . . . Secondary . | . . . Self-Inflicted Damage . | . . . Shots . | . . . Rammed . | . . . Targets Rammed . | . . . Kicked . | . . . Crushed . | . . . Highest Temperature 126 | . 126 . Average Temperature 17 | . 17 . Received Heat Transfer 369 | . 369 . Siege Activations . | . . . Robots Corrupted . | . . . Combat Hostiles . | . . . Parts Fried . | . . . Impact Corruptions . | . . . Robots Melted . | . . . Combat Hostiles . | . . . Parts Melted . | . . . Heat Transferred 259 | . 259 . Parts Sabotaged . | . . . Parts Stolen . | . . . Parts Stripped . | . . . Power Chain Reactions . | . . . Missiles Intercepted . | . . . Alert | -11 -10 -10 ------- Run | Scr Mat Min Peak Influence 387 | . 387 231 Initial 106 | . . 106 Average 224 | . 253 139 Maximum Alert Level 1 | . 1 1 Low Security (%) 36 | 100 23 94 Level 1 63 | . 76 5 Level 2 . | . . . Level 3 . | . . . Level 4 . | . . . Level 5 . | . . . High Security . | . . . Max Security . | . . . Squads Dispatched 5 | . 5 . Investigation 3 | . 3 . Extermination . | . . . Reinforcement 2 | . 2 . Assault . | . . . Garrison . | . . . Intercept . | . . . Searches Triggered . | . . . Construction Impeded . | . . . Haulers Reinforced . | . . . Active Scanning Responses . | . . . Cargo Convoy Interrupts . | . . . Stealth | -11 -10 -10 --------- Run | Scr Mat Min Distress Signals 1 | . 1 . Communications Jammed . | . . . Distress Signals . | . . . Times Spotted 57 | . 35 22 Peak Tracking Total 20 | . 5 20 Tactical Retreats 3 | . 3 . Traps | -11 -10 -10 ------- Run | Scr Mat Min Traps Triggered 3 | . 3 . Indirectly . | . . . Trap Hack Attempts . | . . . Triggered . | . . . Disarmed . | . . . Reprogrammed . | . . . Reused . | . . . Traps Extracted . | . . . Installed . | . . . Triggered . | . . . Machines | -11 -10 -10 ---------- Run | Scr Mat Min Machines Disabled . | . . . Max in Single Turn . | . . . Machines Sabotaged . | . . . Garrisons Compromised . | . . . Overloaded Fab Kills . | . . . Hacking | -11 -10 -10 --------- Run | Scr Mat Min Machines Accessed 4 | . 4 . Terminals 4 | . 4 . Fabricators . | . . . Repair Stations . | . . . Recycling Units . | . . . Scanalyzers . | . . . Garrison Access . | . . . Total Hacks 11 | . 11 . Successful 3 | . 3 . Failed 8 | . 8 . Catastrophic 3 | . 3 . Database Lockouts . | . . . Manual 5 | . 5 . Terminals 11 | . 11 . Fabricators . | . . . Repair Stations . | . . . Recycling Units . | . . . Scanalyzers . | . . . Garrison Access . | . . . Terminal Hacks 3 | . 3 . Branch Access Points 1 | . 1 . Scanalyzer Index 1 | . 1 . Locate Traps 1 | . 1 . Fabricator Hacks . | . . . Repair Station Hacks . | . . . Recycling Unit Hacks . | . . . Scanalyzer . | . . . Garrison Access Hacks . | . . . Unauthorized Hacks . | . . . Terminals . | . . . Fabricators . | . . . Repair Stations . | . . . Recycling Units . | . . . Scanalyzers . | . . . Garrison Access . | . . . Data Cores Recovered . | . . . Used . | . . . Hacking Detections 3 | . 3 . Full Trace Events 1 | . 1 . Feedback Events . | . . . Feedback Blocked . | . . . Robot Schematics Acquired . | . . . Robots Built . | . . . Authchips . | . . . Time . | . . . Total Robot Build Rating . | . . . Part Schematics Acquired . | . . . Parts Built . | . . . Authchips . | . . . Time . | . . . Total Part Build Rating . | . . . Parts Repaired . | . . . Time . | . . . Parts Recycled . | . . . Recycled Matter . | . . . Retrieved Matter . | . . . Retrieved Components . | . . . Parts Scanalyzed . | . . . Part Schematics Acquired . | . . . Parts Damaged . | . . . Bothacking | -11 -10 -10 ------------ Run | Scr Mat Min Used RIF Installer . | . . . Robots Hacked . | . . . Non-combat . | . . . Combat . | . . . Robot Hacks Applied . | . . . Relay Couplers Released . | . . . Fabnet Peak Effective % . | . . . Robots Rewired . | . . . Allies Hacked . | . . . Hacks Repelled . | . . . Allies | -11 -10 -10 -------- Run | Scr Mat Min Total Allies 1 | . . 1 Largest Group 1 | . . 1 Highest-Rated Group 31 | . . 31 Highest-Rated Ally 31 | . . 31 Total Orders . | . . . Ally Attacks 1 | . . 1 Total Damage 22 | . . 22 Kills . | . . . Allies Corrupted . | . . . Allies Melted . | . . . Intel | -11 -10 -10 ------- Run | Scr Mat Min Robot Analysis Total . | . . . Derelict Logs Recovered . | . . . Drone Launches . | . . . Drone Recoveries . | . . . Exploration | -11 -10 -10 ------------- Run | Scr Mat Min Turns Passed 1276 | 79 1054 143 Spaces Moved 784 | 57 616 111 Core 27 | 27 . . Treads 7 | 7 . . Legs 750 | 23 616 111 Wheels . | . . . Hover . | . . . Flight . | . . . Fastest Speed 50 | 50 120 120 Average Speed 119 | 108 120 120 Slowest Speed 200 | 200 190 120 Overloaded Moves . | . . . Propulsion Burnouts . | . . . Robots Hopped . | . . . Cave-ins Triggered . | . . . Exploration Rate (%) 44 | 4 94 34 Regions Visited 2 Branch Regions 1 Pre-discovered Areas . | . . . Known Exits Taken 1 | . 1 . Unknown Exits Taken 1 | 1 . . Scrap Searched . | . . . Spaces Dug . | . . . Terrain Destroyed 36 | . . 36 Melee . | . . . Projectile . | . . . AOE 36 | . . 36 Terrain Rammed . | . . . Walls Destroyed . | . . . Machines Disabled . | . . . Actions | -11 -10 -10 --------- Run | Scr Mat Min Total 969 | 72 781 116 Wait 31 | . 31 . Move 782 | 56 615 111 Hop . | . . . Pick Up 20 | 8 12 . Fast Attach 5 | 2 3 . Attach 7 | 4 3 . Detach . | . . . Swap 9 | 2 6 1 Drop 10 | . 10 . Fire 105 | . 101 4 Melee . | . . . Ram . | . . . Kick . | . . . Crush . | . . . Escape Stasis . | . . . Rewire . | . . . Trap . | . . . Miscellaneous . | . . . Route ------- -11/Scrapyard -10/Materials (discovered 5 exits: [*Mat x3] / *Min x2) -10/Mines (discovered 1 exit: [*Mat]) History --------- Turn | Location | Event 7 | -11/Scrapyard | Discovered new exit (range 14) 80 | -11/Scrapyard | Entered Materials 172 | -10/Materials | Identified exit to Mines 325 | -10/Materials | Build established: Mutant 449 | -10/Materials | Lost 3 parts (1n2w) 507 | -10/Materials | Core integrity fell below 50% 726 | -10/Materials | Discovered new exit (range 10) 794 | -10/Materials | Discovered new exit (range 10) 1005 | -10/Materials | Discovered new exit (range 16) 1134 | -10/Materials | Entered Mines 1137 | -10/Mines | Received a Mining Laser from a helpful Derelict 1225 | -10/Mines | Discovered new exit (range 6) 1267 | -10/Mines | Assembled infested the area 1275 | -10/Mines | Core integrity fell below 20% 1277 | -10/Mines | Destroyed by D-53 Grenadier with Mini Grenade Launcher Last Messages --------------- 01239_ Acquired 3 matter. 01241_ Acquired 8 matter. 01254_ & OB 01254_ K-01 Serf collects debris. 01254_ R-06 Scavenger collects Lgt. Assault Rifle. 01259_ R-06 Scavenger collects Flight Unit. 01267_ ALERT: Infestation in the mines, dispatching Demolisher response squad. 01272_ R-06 Scavenger destroyed. 01272_ T-07 Excavator destroyed. 01273_ as-05389 destroyed. 01273_ as-67483 destroyed. 01273_ as-13458 destroyed. 01273_ SQ-A0H(g) destroyed. 01275_ Destroyed Asb. Hover Unit. 01275_ as-38346 destroyed. 01275_ Destroyed Asb. Hover Unit. 01275_ as-23115 destroyed. 01276_ as-14136 destroyed. 01276_ as-41742 destroyed. Map ----- +----------------------------------------------------+ | ?????????????????????# #?# ##??## #?????????? | | ?????????????????????# #?# ##???## #?????????? | | ?????????????????????# #?# #?#### ##????????? | | ?????????????????????# ### ### #????????? | | ?????????????????????# ## #????????? | | ?????????????????????# ########### ##????????? | | ?????????????????????# #????????## ##?????????? | | ?????????????????????# #???????## ##??????????? | | ?????????????????????# #???????# ##???????????? | | ?????????????????????# #???????# ##????????????? | | ????????????????????? ???????# ##????##??????? | | ????????????????????? ???????# ##??? ?????##? | | ????????????????????? ???????## #?? #?? ## | | ???????????????????? ????????## ### ## # | | ???????????????????? ?????????# # | | ???????????????????? ?????????## < #? | | ???????????????????? ???####???# ### ##? | | ???????????????????# ###### # ##?## %"#???? ##?? | | ???????????????????# ??# ### ##?????????? | | ????????????????????? ??# ##??????????? | | ????????????????????????# d ##??????????? | | ????????????????????????# =% d #??????????? | | ???????????????????????## %! #??????????? | | ???????????# ??????## [ = ##??????????? | | ????????? a %a # ## ##???????????? | | ????????? a a a%% @ ## #????????????? | | ????????? a aa%a % # #????????????? | | ????????????# a # ##????????????? | | ???????????# # # ## ###?????????????? | | ?????????????## #??## ### ##???????????????? | | ????????????????????#####??## ##????????????????? | | ????????????????????????????####?????????????????? | | ?????????????????????????????????????????????????? | | ?????????????????????????????????????????????????? | | ?????????????????????????????????????????????????? | | ?????????????????????????????????????????????????? | | ?????????????????????????????????????????????????? | | ?????????????????????????????????????????????????? | | ?????????????????????????????????????????????????? | | ?????????????????????????????????????????????????? | | | | | | | | | | | | | | | | | | | | | +----------------------------------------------------+ Best States ------------- Heat Dissipation 25 Energy Generation 10 Energy Capacity 250 Matter Stores 300 Matter Capacity 300 Sight Range 16 Terrain Scan Density 10 Evasion (%) 55 Recoil Reduction 2 Authchip Count 1 Item Schematics ----------------- None Robot Schematics ------------------ None Fabricated ------------ Nothing Alien Tech Used ----------------- None Achievements -------------- None Challenges ------------ None Game ------ Seed SensorCannonRegenerator Manual? 0 Play Time 00:11:58 Cumulative 37.8 hours Start 2022.12.12 @ 19:17:41 End 2022.12.12 @ 19:28:22 Sessions 1 Manual Loads 0 Difficulty Rogue Special Mode None Game No. 48 Rogue 48 Adventurer 0 Explorer 0 Win Type - Total 0 Types 0/0/0/0/0/0/0/0/0 Lore% 18 Gallery% 34 Achievement% 30 Wizard Run 0 Options --------- ASCII 0 Keyboard 0 Movement Mouse Keybinds 0 Fullscreen 2 Font 24/Smallcaps Map View 76x50 Tactical HUD 1 Map Filters NONE Filters NONE Steam 1 RUN: 6f6a2f3d-149d-4911-bfc1-37f69ed20ffc